fUST/lending_fUST_20250502
["ID","MTS","AMOUNT","RATE_DAILY","PERIOD"]
[359628219,1746195043121,-500.0,0.00019178,2]
[359628221,1746195043132,-500.0,0.00019178,2]
[359628223,1746195043141,-400.0,0.00019178,2]
[359628225,1746195043151,-500.0,0.00019178,2]
[359628227,1746195043161,-502.39653964,0.00019178,2]
[359628229,1746195043170,-500.0,0.00019178,2]
[359628231,1746195043179,-151.0,0.00019178,2]
[359628233,1746195043188,-400.0,0.00019178,2]
[359628234,1746195043198,-151.0,0.00019178,2]
[359628235,1746195043207,-151.0,0.00019178,2]
[359628236,1746195043216,-500.0,0.00019178,2]
[359628237,1746195043225,-151.0,0.00019178,2]
[359628238,1746195043234,-151.0,0.00019178,2]
[359628239,1746195043243,-400.0,0.00019178,2]
[359628240,1746195043252,-151.0,0.00019178,2]
[359628241,1746195043261,-500.0,0.00019178,2]
[359628242,1746195043270,-500.0,0.00019178,2]
[359628243,1746195043279,-400.0,0.00019178,2]
[359628244,1746195043289,-400.0,0.00019178,2]
[359628245,1746195043299,-400.0,0.00019178,2]
[359628246,1746195043308,-523.25616664,0.00019178,2]
[359628247,1746195043317,-400.0,0.00019178,2]
[359628248,1746195043326,-400.0,0.00019178,2]
[359628249,1746195043336,-432.71,0.00019178,2]
[359628250,1746195043345,-400.0,0.00019178,2]
[359628251,1746195043355,-504.7994108,0.00019178,2]
[359628252,1746195043364,-400.0,0.00019178,2]
[359628253,1746195043384,-400.0,0.00019178,2]
[359628254,1746195043394,-400.0,0.00019178,2]
[359628257,1746195043403,-400.0,0.00019178,2]
[359628259,1746195043413,-400.0,0.00019178,2]
[359628261,1746195043423,-500.0,0.00019178,2]
[359628263,1746195043432,-235.68202355,0.00019178,2]
[359628265,1746195043442,-500.0,0.00019178,2]
[359628267,1746195043451,-432.44194886,0.00019178,2]
[359628269,1746195043460,-178.41087331,0.00019178,2]
[359628271,1746195043470,-509.07997249,0.00019178,2]
[359628273,1746195043479,-400.0,0.00019178,2]
[359628275,1746195043488,-500.0,0.00019178,2]
[359628277,1746195043498,-400.0,0.00019178,2]
[359628279,1746195043508,-400.0,0.00019178,2]
[359628281,1746195043518,-500.0,0.00019178,2]
[359628283,1746195043527,-400.0,0.00019178,2]
[359628285,1746195043536,-379.77983279,0.00019178,2]
[359628287,1746195043546,-500.0,0.00019178,2]
[359628289,1746195043555,-400.0,0.00019178,2]
[359628291,1746195043564,-400.0,0.00019178,2]
[359628293,1746195043574,-500.0,0.00019178,2]
[359628296,1746195043584,-500.0,0.00019178,2]
[359628297,1746195043593,-1225.66,0.00019178,2]
[359628300,1746195043603,-400.0,0.00019178,2]
[359628302,1746195043612,-500.0,0.00019178,2]
[359628304,1746195043622,-500.0,0.00019178,2]
[359628306,1746195043632,-400.0,0.00019178,2]
[359628308,1746195043642,-500.0,0.00019178,2]
[359628310,1746195043651,-500.0,0.00019178,2]
[359628312,1746195043660,-400.0,0.00019178,2]
[359628314,1746195043670,-504.25907446,0.00019178,2]
[359628316,1746195043680,-503.89200455,0.00019178,2]
[359628318,1746195043689,-452.37,0.00019178,2]
[359628320,1746195043698,-500.0,0.00019178,2]
[359628322,1746195043708,-400.0,0.00019178,2]
[359628324,1746195043718,-400.0,0.00019178,2]
[359628326,1746195043727,-764.18,0.00019178,2]
[359628329,1746195043739,-2110.23,0.00019178,2]
[359628332,1746195043759,-515.3,0.00019178,2]
[359628335,1746195043778,-500.0,0.00019178,2]
[359628338,1746195043794,-500.0,0.00019178,2]
[359628340,1746195043804,-500.0,0.00019178,2]
[359628342,1746195043813,-500.0,0.00019178,2]
[359628344,1746195043824,-500.0,0.00019178,2]
[359628346,1746195043833,-500.0,0.00019178,2]
[359628348,1746195043843,-500.0,0.00019178,2]
[359628350,1746195043853,-500.0,0.00019178,2]
[359628352,1746195043862,-400.0,0.00019178,2]
[359628354,1746195043872,-179.03081135,0.00019178,2]
[359628356,1746195043882,-500.0,0.00019178,2]
[359628358,1746195043891,-400.0,0.00019178,2]
[359628360,1746195043901,-400.0,0.00019178,2]
[359628362,1746195043911,-400.0,0.00019178,2]
[359628364,1746195043920,-400.0,0.00019178,2]
[359628366,1746195043929,-400.0,0.00019178,2]
[359628368,1746195043939,-1341.04,0.00019178,2]
[359628370,1746195043949,-400.0,0.00019178,2]
[359628372,1746195043959,-1021.37,0.00019178,2]
[359628374,1746195043968,-500.0,0.00019178,2]
[359628376,1746195043977,-793.81,0.00019178,2]
[359628378,1746195043987,-400.0,0.00019178,2]
[359628380,1746195043996,-400.0,0.00019178,2]
[359628382,1746195044006,-488.27,0.00019178,2]
[359628384,1746195044015,-488.27,0.00019178,2]
[359628386,1746195044025,-400.0,0.00019178,2]
[359628388,1746195044034,-400.0,0.00019178,2]
[359628390,1746195044043,-506.08208493,0.00019178,2]
[359628392,1746195044052,-586.31,0.00019178,2]
[359628394,1746195044061,-479.72210351,0.00019178,2]
[359628396,1746195044070,-400.0,0.00019178,2]
[359628398,1746195044079,-400.0,0.00019178,2]
[359628400,1746195044089,-438.83,0.00019178,2]
[359628402,1746195044097,-400.0,0.00019178,2]
[359628404,1746195044108,-432.01,0.00019178,2]
[359628406,1746195044117,-400.0,0.00019178,2]
[359628408,1746195044127,-400.0,0.00019178,2]
[359628410,1746195044136,-400.0,0.00019178,2]
[359628412,1746195044145,-5491.01,0.00019178,2]
[359628414,1746195044154,-526.29,0.00019178,2]
[359628416,1746195044163,-400.0,0.00019178,2]
[359628418,1746195044173,-710.99,0.00019178,2]
[359628420,1746195044182,-400.0,0.00019178,2]
[359628422,1746195044191,-400.0,0.00019178,2]
[359628424,1746195044200,-493.96,0.00019178,2]
[359628427,1746195044211,-400.0,0.00019178,2]
[359628429,1746195044220,-400.0,0.00019178,2]
[359628431,1746195044230,-400.0,0.00019178,2]
[359628433,1746195044239,-400.0,0.00019178,2]
[359628435,1746195044248,-400.0,0.00019178,2]
[359628437,1746195044257,-1205.82,0.00019178,2]
[359628438,1746195044266,-400.0,0.00019178,2]
[359628440,1746195044276,-852.84,0.00019178,2]
[359628443,1746195044285,-1936.99,0.00019178,2]
[359628445,1746195044295,-500.0,0.00019178,2]
[359628447,1746195044304,-978.48,0.00019178,2]
[359628449,1746195044313,-483.58,0.00019178,2]
[359628451,1746195044323,-400.0,0.00019178,2]
[359628453,1746195044333,-2126.96,0.00019178,2]
[359628455,1746195044342,-400.0,0.00019178,2]
[359628457,1746195044351,-1275.46,0.00019178,2]
[359628458,1746195044360,-400.0,0.00019178,2]
[359628460,1746195044369,-400.0,0.00019178,2]
[359628462,1746195044380,-4469.21,0.00019178,2]
[359628464,1746195044389,-502.74692449,0.00019178,2]
[359628467,1746195044398,-400.0,0.00019178,2]
[359628468,1746195044408,-400.0,0.00019178,2]
[359628470,1746195044417,-1872.88,0.00019178,2]
[359628472,1746195044426,-400.0,0.00019178,2]
[359628474,1746195044435,-500.0,0.00019178,2]
[359628476,1746195044444,-1724.34,0.00019178,2]
[359628478,1746195044453,-665.32,0.00019178,2]
[359628480,1746195044462,-400.0,0.00019178,2]
[359628482,1746195044471,-455.0,0.00019178,2]
[359628484,1746195044480,-1507.14,0.00019178,2]
[359628487,1746195044490,-400.0,0.00019178,2]
[359628489,1746195044499,-400.0,0.00019178,2]
[359628491,1746195044508,-400.0,0.00019178,2]
[359628493,1746195044517,-400.0,0.00019178,2]
[359628495,1746195044526,-500.0,0.00019178,2]
[359628496,1746195044535,-400.0,0.00019178,2]
[359628498,1746195044545,-400.0,0.00019178,2]
[359628500,1746195044554,-151.0,0.00019178,2]
[359628502,1746195044563,-400.0,0.00019178,2]
[359628504,1746195044572,-400.0,0.00019178,2]
[359628507,1746195044582,-300.38436922,0.00019178,2]
[359628509,1746195044591,-151.0,0.00019178,2]
[359628511,1746195044600,-2818.34,0.00019178,2]
[359628513,1746195044609,-151.0,0.00019178,2]
[359628514,1746195044618,-433.88,0.00019178,2]
[359628517,1746195044628,-451.89,0.00019178,2]
[359628519,1746195044637,-400.0,0.00019178,2]
[359628520,1746195044647,-500.0,0.00019178,2]
[359628523,1746195044656,-1831.07,0.00019178,2]
[359628525,1746195044666,-400.0,0.00019178,2]
[359628527,1746195044675,-400.0,0.00019178,2]
[359628529,1746195044684,-151.0,0.00019178,2]
[359628531,1746195044694,-504.16894908,0.00019178,2]
[359628533,1746195044703,-500.0,0.00019178,2]
[359628535,1746195044712,-409.41,0.00019178,2]
[359628537,1746195044722,-510.99737348,0.00019178,2]
[359628539,1746195044731,-510.98,0.00019178,2]
[359628541,1746195044744,-500.0,0.00019178,2]
[359628543,1746195044754,-502.64749676,0.00019178,2]
[359628545,1746195044763,-400.0,0.00019178,2]
[359628547,1746195044772,-167.10733124,0.00019178,2]
[359628549,1746195044782,-400.0,0.00019178,2]
[359628551,1746195044791,-500.0,0.00019178,2]
[359628553,1746195044801,-400.0,0.00019178,2]
[359628555,1746195044811,-3895.35,0.00019178,2]
[359628557,1746195044821,-151.0,0.00019178,2]
[359628559,1746195044831,-151.0,0.00019178,2]
[359628561,1746195044840,-400.0,0.00019178,2]
[359628563,1746195044849,-1602.13,0.00019178,2]
[359628565,1746195044859,-400.0,0.00019178,2]
[359628567,1746195044868,-523.60510386,0.00019178,2]
[359628569,1746195044878,-575.92,0.00019178,2]
[359628571,1746195044890,-400.0,0.00019178,2]
[359628573,1746195044900,-230.20719145,0.00019178,2]
[359628598,1746195045132,-269.79280855,0.00019178,2]
[359628600,1746195045142,-400.0,0.00019178,2]
[359628602,1746195045151,-500.0,0.00019178,2]
[359628604,1746195045160,-2221.89,0.00019178,2]
[359628606,1746195045170,-500.0,0.00019178,2]
[359628608,1746195045180,-400.0,0.00019178,2]
[359628610,1746195045189,-500.0,0.00019178,2]
[359628612,1746195045199,-500.0,0.00019178,2]
[359628614,1746195045208,-400.0,0.00019178,2]
[359628616,1746195045218,-400.0,0.00019178,2]
[359628618,1746195045227,-400.0,0.00019178,2]
[359628620,1746195045236,-2118.37,0.00019178,2]
[359628622,1746195045246,-400.0,0.00019178,2]
[359628625,1746195045255,-400.0,0.00019178,2]
[359628627,1746195045265,-400.0,0.00019178,2]
[359628647,1746195045447,-500.0,0.00019178,2]
[359628649,1746195045458,-1896.97,0.00019178,2]
[359628651,1746195045468,-400.0,0.00019178,2]
[359628653,1746195045478,-500.0,0.00019178,2]
[359628655,1746195045487,-500.0,0.00019178,2]
[359628658,1746195045498,-400.0,0.00019178,2]
[359628660,1746195045508,-662.04,0.00019178,2]
[359628662,1746195045517,-400.0,0.00019178,2]
[359628664,1746195045527,-400.0,0.00019178,2]
[359628666,1746195045537,-400.0,0.00019178,2]
[359628668,1746195045547,-500.0,0.00019178,2]
[359628670,1746195045556,-400.0,0.00019178,2]
[359628672,1746195045566,-400.0,0.00019178,2]
[359628674,1746195045575,-400.0,0.00019178,2]
[359628676,1746195045585,-572.5,0.00019178,2]
[359628678,1746195045594,-400.0,0.00019178,2]
[359628680,1746195045604,-1046.6,0.00019178,2]
[359628682,1746195045614,-400.0,0.00019178,2]
[359628684,1746195045624,-400.0,0.00019178,2]
[359628686,1746195045634,-721.82,0.00019178,2]
[359628688,1746195045643,-400.0,0.00019178,2]
[359628690,1746195045652,-257.77260435,0.00019178,2]
[359628692,1746195045662,-500.0,0.00019178,2]
[359628694,1746195045672,-400.0,0.00019178,2]
[359628696,1746195045682,-435.19,0.00019178,2]
[359628698,1746195045691,-400.0,0.00019178,2]
[359628700,1746195045700,-500.0,0.00019178,2]
[359628702,1746195045710,-1828.59,0.00019178,2]
[359628704,1746195045720,-562.65,0.00019178,2]
[359628706,1746195045730,-1151.58,0.00019178,2]
[359628708,1746195045742,-501.19874312,0.00019178,2]
[359628710,1746195045752,-400.0,0.00019178,2]
[359628712,1746195045762,-463.83946189,0.00019178,2]
[359628714,1746195045771,-400.0,0.00019178,2]
[359628716,1746195045782,-400.0,0.00019178,2]
[359628718,1746195045792,-13.61550744,0.00019178,2]
[359628742,1746195045998,-486.38449256,0.00019178,2]
[359628745,1746195046009,-374.46248814,0.00019178,2]
[359628846,1746195046524,-25.53751186,0.00019178,2]
[359628849,1746195046534,-400.0,0.00019178,2]
[359628853,1746195046544,-400.0,0.00019178,2]
[359628856,1746195046553,-400.0,0.00019178,2]
[359628858,1746195046563,-852.5,0.00019178,2]
[359628862,1746195046573,-400.0,0.00019178,2]
[359628865,1746195046582,-400.0,0.00019178,2]
[359628868,1746195046591,-400.0,0.00019178,2]
[359628872,1746195046600,-400.0,0.00019178,2]
[359628875,1746195046610,-1266.53,0.00019178,2]
[359628878,1746195046619,-281.91164045,0.00019178,2]
[359628880,1746195046628,-500.0,0.00019178,2]
[359628883,1746195046641,-400.0,0.00019178,2]
[359628887,1746195046651,-151.0,0.00019178,2]
[359628889,1746195046660,-500.0,0.00019178,2]
[359628892,1746195046669,-151.0,0.00019178,2]
[359628895,1746195046679,-500.0,0.00019178,2]
[359628898,1746195046688,-493.16,0.00019178,2]
[359628901,1746195046697,-400.0,0.00019178,2]
[359628905,1746195046707,-200.83534951,0.00019178,2]
[359628908,1746195046717,-400.0,0.00019178,2]
[359628911,1746195046726,-429.79,0.00019178,2]
[359628913,1746195046735,-5622.53,0.00019178,2]
[359628916,1746195046749,-1656.07,0.00019178,2]
[359628919,1746195046758,-415.33677145,0.00019178,2]
[359628930,1746195046806,-84.66322855,0.00019178,2]
[359628933,1746195046817,-500.0,0.00019178,2]
[359628936,1746195046826,-227.03012067,0.00019178,2]
[359628960,1746195046937,-287.96987933,0.00019178,2]
[359628964,1746195046947,-346.32492308,0.00019178,2]
[359628967,1746195046957,-214.90106808,0.00019178,2]
[359629127,1746195775871,251.4250296,0.00017959,2]
[359629166,1746196232611,-307.63,0.0001816,2]
[359629167,1746196232621,-1200.0,0.00018167,2]
[359629169,1746196232631,-300.0,0.00018168,2]
[359629170,1746196232640,-300.0,0.00018168,2]
[359629171,1746196232649,-300.0,0.00018168,2]
[359629172,1746196232659,-100.60760735,0.00018168,2]
[359629173,1746196232670,-51.39239265,0.00018168,2]
[359629174,1746196232680,-500.0,0.00018169,2]
[359629175,1746196232689,-437.20540885,0.00018169,2]
[359629176,1746196232699,-500.0,0.00018169,2]
[359629177,1746196232709,-14688.75277616,0.0001817,2]
[359629178,1746196232722,-555.00371477,0.0001817,2]
[359629179,1746196232733,-5832.04752167,0.0001817,2]
[359629180,1746196232743,-836.00686096,0.000188,2]
[359629181,1746196232752,-4500.69786168,0.000189,2]
[359629182,1746196232772,-14825.52231862,0.000189,2]
[359629183,1746196232781,-150.0,0.000189,2]
[359629184,1746196232791,-203.46537282,0.00019078,2]
[359629185,1746196232800,-1325.25,0.00019168,3]
[359629186,1746196232809,-662.62,0.00019168,3]
[359629187,1746196232819,-331.31,0.00019168,3]
[359629188,1746196232833,-165.66,0.00019168,3]
[359629189,1746196232843,-497.0,0.00019168,3]
[359629190,1746196232852,-307.63,0.00019168,2]
[359629191,1746196232861,-307.63,0.00019168,2]
[359629192,1746196232871,-479.1786827,0.00019177,2]
[359629193,1746196232881,-190.42977112,0.00019177,2]
[359629194,1746196232891,-200.0,0.00019178,2]
[359629195,1746196232900,-500.0,0.00019178,2]
[359629196,1746196232910,-500.0,0.00019178,2]
[359629197,1746196232920,-500.0,0.00019178,2]
[359629198,1746196232930,-400.0,0.00019178,2]
[359629199,1746196232940,-500.0,0.00019178,2]
[359629200,1746196232949,-400.0,0.00019178,2]
[359629201,1746196232959,-500.0,0.00019178,2]
[359629202,1746196232969,-400.0,0.00019178,2]
[359629203,1746196232978,-735.56,0.00019178,2]
[359629204,1746196232988,-400.0,0.00019178,2]
[359629205,1746196232997,-500.0,0.00019178,2]
[359629206,1746196233007,-400.0,0.00019178,2]
[359629207,1746196233017,-400.0,0.00019178,2]
[359629208,1746196233026,-400.0,0.00019178,2]
[359629209,1746196233036,-400.0,0.00019178,2]
[359629210,1746196233046,-400.0,0.00019178,2]
[359629211,1746196233056,-400.0,0.00019178,2]
[359629212,1746196233067,-458.97,0.00019178,2]
[359629213,1746196233078,-400.0,0.00019178,2]
[359629214,1746196233090,-156.89615278,0.00019178,2]
[359629215,1746196233100,-500.0,0.00019178,2]
[359629216,1746196233110,-400.0,0.00019178,2]
[359629217,1746196233122,-400.0,0.00019178,2]
[359629218,1746196233132,-400.0,0.00019178,2]
[359629219,1746196233141,-400.0,0.00019178,2]
[359629220,1746196233151,-400.0,0.00019178,2]
[359629221,1746196233162,-400.0,0.00019178,2]
[359629222,1746196233172,-400.0,0.00019178,2]
[359629223,1746196233181,-400.0,0.00019178,2]
[359629224,1746196233191,-400.0,0.00019178,2]
[359629225,1746196233201,-500.0,0.00019178,2]
[359629226,1746196233210,-1000.0,0.00019178,2]
[359629227,1746196233220,-338.13563318,0.00019178,2]
[359629228,1746196233231,-400.0,0.00019178,2]
[359629229,1746196233241,-500.0,0.00019178,2]
[359629230,1746196233251,-400.0,0.00019178,2]
[359629231,1746196233261,-400.0,0.00019178,2]
[359629232,1746196233272,-505.89638131,0.00019178,2]
[359629233,1746196233283,-400.0,0.00019178,2]
[359629234,1746196233293,-500.0,0.00019178,2]
[359629235,1746196233304,-400.0,0.00019178,2]
[359629236,1746196233314,-400.0,0.00019178,2]
[359629237,1746196233324,-203.69753193,0.00019178,2]
[359629238,1746196233334,-400.0,0.00019178,2]
[359629239,1746196233344,-400.0,0.00019178,2]
[359629240,1746196233355,-500.0,0.00019178,2]
[359629241,1746196233365,-400.0,0.00019178,2]
[359629242,1746196233376,-400.0,0.00019178,2]
[359629243,1746196233386,-500.0,0.00019178,2]
[359629244,1746196233397,-400.0,0.00019178,2]
[359629245,1746196233408,-400.0,0.00019178,2]
[359629246,1746196233418,-325.89037028,0.00019178,2]
[359629247,1746196233428,-400.0,0.00019178,2]
[359629248,1746196233438,-400.0,0.00019178,2]
[359629249,1746196233448,-400.0,0.00019178,2]
[359629250,1746196233458,-510.96321179,0.00019178,2]
[359629251,1746196233468,-500.0,0.00019178,2]
[359629252,1746196233479,-400.0,0.00019178,2]
[359629253,1746196233489,-400.0,0.00019178,2]
[359629254,1746196233499,-400.0,0.00019178,2]
[359629255,1746196233511,-400.0,0.00019178,2]
[359629256,1746196233522,-400.0,0.00019178,2]
[359629257,1746196233533,-501.38540952,0.00019178,2]
[359629258,1746196233543,-400.0,0.00019178,2]
[359629259,1746196233554,-403.39570141,0.00019178,2]
[359629260,1746196233564,-537.9,0.00019178,2]
[359629261,1746196233575,-400.0,0.00019178,2]
[359629262,1746196233584,-400.0,0.00019178,2]
[359629263,1746196233594,-400.0,0.00019178,2]
[359629264,1746196233605,-500.0,0.00019178,2]
[359629265,1746196233615,-400.0,0.00019178,2]
[359629266,1746196233625,-400.0,0.00019178,2]
[359629267,1746196233636,-500.0,0.00019178,2]
[359629268,1746196233646,-400.0,0.00019178,2]
[359629269,1746196233656,-500.0,0.00019178,2]
[359629270,1746196233666,-400.0,0.00019178,2]
[359629271,1746196233676,-500.0,0.00019178,2]
[359629272,1746196233686,-500.0,0.00019178,2]
[359629273,1746196233696,-400.0,0.00019178,2]
[359629274,1746196233706,-400.0,0.00019178,2]
[359629275,1746196233716,-449.38,0.00019178,2]
[359629276,1746196233726,-504.40342907,0.00019178,2]
[359629277,1746196233736,-500.0,0.00019178,2]
[359629278,1746196233745,-400.0,0.00019178,2]
[359629279,1746196233755,-400.0,0.00019178,2]
[359629280,1746196233765,-226.32817536,0.00019178,2]
[359629281,1746196233775,-400.0,0.00019178,2]
[359629282,1746196233784,-422.96,0.00019178,2]
[359629283,1746196233794,-500.0,0.00019178,2]
[359629284,1746196233804,-500.0,0.00019178,2]
[359629285,1746196233814,-500.0,0.00019178,2]
[359629286,1746196233824,-500.0,0.00019178,2]
[359629287,1746196233834,-201.66323078,0.00019178,2]
[359629288,1746196233844,-400.0,0.00019178,2]
[359629289,1746196233854,-500.0,0.00019178,2]
[359629290,1746196233864,-504.31785066,0.00019178,2]
[359629291,1746196233874,-500.0,0.00019178,2]
[359629292,1746196233886,-500.0,0.00019178,2]
[359629293,1746196233896,-400.0,0.00019178,2]
[359629294,1746196233906,-400.0,0.00019178,2]
[359629295,1746196233916,-400.0,0.00019178,2]
[359629296,1746196233926,-500.0,0.00019178,2]
[359629297,1746196233936,-400.0,0.00019178,2]
[359629298,1746196233946,-400.0,0.00019178,2]
[359629299,1746196233955,-500.0,0.00019178,2]
[359629300,1746196233965,-500.0,0.00019178,2]
[359629301,1746196233975,-776.86,0.00019178,2]
[359629302,1746196233985,-400.0,0.00019178,2]
[359629303,1746196233995,-353.65622271,0.00019178,2]
[359629304,1746196234005,-462.37,0.00019178,2]
[359629305,1746196234015,-414.68,0.00019178,2]
[359629306,1746196234025,-400.0,0.00019178,2]
[359629307,1746196234035,-732.34,0.00019178,2]
[359629308,1746196234044,-400.0,0.00019178,2]
[359629309,1746196234054,-400.0,0.00019178,2]
[359629310,1746196234063,-479.29,0.00019178,2]
[359629311,1746196234073,-484.59,0.00019178,2]
[359629312,1746196234090,-151.0,0.00019178,2]
[359629313,1746196234101,-151.0,0.00019178,2]
[359629314,1746196234111,-250.682912,0.00019178,2]
[359629315,1746196234121,-400.0,0.00019178,2]
[359629316,1746196234134,-400.0,0.00019178,2]
[359629317,1746196234143,-400.0,0.00019178,2]
[359629318,1746196234153,-807.67,0.00019178,2]
[359629319,1746196234163,-1018.6,0.00019178,2]
[359629320,1746196234174,-400.0,0.00019178,2]
[359629321,1746196234193,-492.93,0.00019178,2]
[359629322,1746196234205,-400.0,0.00019178,2]
[359629323,1746196234215,-400.0,0.00019178,2]
[359629324,1746196234225,-400.0,0.00019178,2]
[359629325,1746196234235,-400.0,0.00019178,2]
[359629326,1746196234245,-755.27,0.00019178,2]
[359629327,1746196234255,-500.0,0.00019178,2]
[359629328,1746196234265,-505.57,0.00019178,2]
[359629329,1746196234275,-400.0,0.00019178,2]
[359629330,1746196234286,-400.0,0.00019178,2]
[359629331,1746196234296,-400.0,0.00019178,2]
[359629332,1746196234306,-400.0,0.00019178,2]
[359629333,1746196234316,-400.0,0.00019178,2]
[359629334,1746196234327,-545.57,0.00019178,2]
[359629335,1746196234337,-465.0,0.00019178,2]
[359629336,1746196234347,-400.0,0.00019178,2]
[359629337,1746196234357,-400.0,0.00019178,2]
[359629338,1746196234367,-400.0,0.00019178,2]
[359629339,1746196234378,-400.0,0.00019178,2]
[359629340,1746196234388,-400.0,0.00019178,2]
[359629341,1746196234399,-400.0,0.00019178,2]
[359629342,1746196234409,-400.0,0.00019178,2]
[359629343,1746196234420,-411.37,0.00019178,2]
[359629344,1746196234430,-400.0,0.00019178,2]
[359629345,1746196234441,-500.0,0.00019178,2]
[359629346,1746196234451,-1088.71,0.00019178,2]
[359629347,1746196234461,-400.0,0.00019178,2]
[359629348,1746196234472,-400.0,0.00019178,2]
[359629349,1746196234483,-241.99508724,0.00019178,2]
[359629350,1746196234493,-501.01614136,0.00019178,2]
[359629351,1746196234504,-614.24,0.00019178,2]
[359629352,1746196234514,-409.02,0.00019178,2]
[359629353,1746196234524,-400.0,0.00019178,2]
[359629354,1746196234534,-331.40739042,0.00019178,2]
[359629355,1746196234545,-400.0,0.00019178,2]
[359629356,1746196234555,-580.44,0.00019178,2]
[359629357,1746196234565,-400.0,0.00019178,2]
[359629358,1746196234575,-500.0,0.00019178,2]
[359629359,1746196234585,-400.0,0.00019178,2]
[359629360,1746196234595,-400.0,0.00019178,2]
[359629361,1746196234606,-400.0,0.00019178,2]
[359629362,1746196234616,-209.3510485,0.00019178,2]
[359629363,1746196234625,-400.0,0.00019178,2]
[359629364,1746196234635,-537.69,0.00019178,2]
[359629365,1746196234645,-400.0,0.00019178,2]
[359629366,1746196234655,-400.0,0.00019178,2]
[359629367,1746196234664,-400.0,0.00019178,2]
[359629368,1746196234674,-400.0,0.00019178,2]
[359629369,1746196234684,-434.46404568,0.00019178,2]
[359629370,1746196234693,-400.0,0.00019178,2]
[359629371,1746196234703,-400.0,0.00019178,2]
[359629372,1746196234713,-477.31,0.00019178,2]
[359629373,1746196234722,-400.0,0.00019178,2]
[359629374,1746196234732,-400.0,0.00019178,2]
[359629375,1746196234743,-554.98,0.00019178,2]
[359629376,1746196234753,-400.0,0.00019178,2]
[359629377,1746196234763,-893.1,0.00019178,2]
[359629378,1746196234773,-400.0,0.00019178,2]
[359629379,1746196234782,-400.0,0.00019178,2]
[359629380,1746196234792,-400.0,0.00019178,2]
[359629381,1746196234802,-400.0,0.00019178,2]
[359629382,1746196234812,-400.0,0.00019178,2]
[359629383,1746196234821,-489.28,0.00019178,2]
[359629384,1746196234831,-400.0,0.00019178,2]
[359629385,1746196234841,-640.73,0.00019178,2]
[359629386,1746196234850,-685.79,0.00019178,2]
[359629387,1746196234861,-400.0,0.00019178,2]
[359629388,1746196234871,-400.0,0.00019178,2]
[359629389,1746196234882,-400.0,0.00019178,2]
[359629390,1746196234892,-400.0,0.00019178,2]
[359629391,1746196234901,-400.0,0.00019178,2]
[359629392,1746196234911,-501.34447408,0.00019178,2]
[359629393,1746196234921,-400.0,0.00019178,2]
[359629394,1746196234931,-865.14,0.00019178,2]
[359629395,1746196234941,-400.0,0.00019178,2]
[359629396,1746196234950,-400.0,0.00019178,2]